bitfinex/quotes_ETHUSD_20251218
["timestamp","ask_amount","ask_price","bid_price","bid_amount"]
[1766034710922,2.50066409,2836.7,2836.4,0.031684]
[1766034712442,3.52534724,2836.6,2836.2,0.031684]
[1766034712750,7.05069448,2836.6,2836.0,0.033684]
[1766034712949,7.05069448,2836.6,2836.2,0.031684]
[1766034713115,1.58082394,2836.5,2836.2,0.031684]
[1766034714945,5.10635399,2836.5,2836.2,0.031684]
[1766034715242,8.63188404,2836.5,2836.2,0.031684]
[1766034715648,5.10635399,2836.5,2836.2,0.031684]
[1766034715847,3.52553005,2836.5,2836.2,0.031684]
[1766034716351,4.08253005,2836.5,2836.2,0.031684]
[1766034717357,0.557,2836.5,2836.2,0.031684]
[1766034717546,0.557,2836.5,2836.4,0.031684]
[1766034718042,4.54677115,2836.6,2836.4,0.031684]
[1766034718548,3.98977115,2836.6,2836.4,0.031684]
[1766034718733,4.54677115,2836.6,2836.4,0.031684]
[1766034719250,0.557,2836.6,2836.4,0.031684]
[1766034719429,4.08236824,2836.6,2836.4,0.031684]
[1766034719950,0.46438023,2836.6,2836.4,0.031684]
[1766034720133,1.02138023,2836.6,2836.4,0.031684]
[1766034720329,1.02138023,2836.6,2836.2,0.031684]
[1766034720747,1.02138023,2836.6,2836.4,0.031684]
[1766034721256,4.54679346,2836.6,2836.4,0.031684]
[1766034721443,3.98979346,2836.6,2836.4,0.031684]
[1766034722550,0.557,2836.7,2836.4,0.031684]
[1766034722551,4.54664476,2836.7,2836.4,0.031684]
[1766034726565,3.98964476,2836.7,2836.4,0.031684]
[1766034726733,4.54664476,2836.7,2836.4,0.031684]
[1766034726937,16.27247488,2836.7,2836.2,0.031684]
[1766034727174,6.72126101,2836.5,2836.0,0.033684]
[1766034727661,6.72126101,2836.5,2836.2,0.031684]
[1766034727953,6.72126101,2836.5,2836.0,0.033684]
[1766034728161,6.72126101,2836.3,2835.8,0.002]
[1766034728334,6.72126101,2836.3,2835.9,0.031684]
[1766034728335,0.557,2836.2,2835.9,0.031684]
[1766034728729,3.52596875,2836.1,2835.9,0.031684]
[1766034728974,4.08285859,2836.2,2835.9,0.031684]
[1766034731060,6.72126101,2836.0,2835.4,0.031684]
[1766034731261,6.72126101,2836.0,2835.7,0.031684]
[1766034731565,14.32997819,2836.2,2835.4,0.031684]
[1766034731732,14.32997819,2836.2,2835.6,0.031684]
[1766034732972,7.05171718,2836.2,2835.6,0.031684]
[1766034733178,0.557,2836.1,2835.6,0.031684]
[1766034734364,1.31787172,2836.1,2835.6,2.455384]
[1766034734544,3.52585859,2836.2,2835.9,2.4237]
[1766034734863,4.08285859,2836.2,2836.0,0.031684]
[1766034735356,4.08285859,2836.2,2835.8,0.031684]
[1766034735357,7.60871718,2836.2,2835.8,0.031684]
[1766034736152,4.08285859,2836.2,2835.8,0.031684]
[1766034737130,7.60871718,2836.2,2835.8,0.031684]
[1766034738065,7.60871718,2836.2,2835.6,0.031684]
[1766034738263,7.60871718,2836.2,2835.8,0.031684]
[1766034738447,9.041715,2836.2,2835.8,0.031684]
[1766034738836,15.76297601,2836.2,2835.6,0.031668]
[1766034739135,15.76297601,2836.2,2835.4,0.031684]
[1766034739333,15.76297601,2836.2,2835.6,0.031684]
[1766034740539,0.405504,2836.1,2835.6,0.031684]
[1766034740740,2.35364546,2836.1,2835.6,0.031684]
[1766034740936,0.557,2836.0,2835.6,0.031684]
[1766034741140,3.52621742,2835.9,2835.6,0.031684]
[1766034741975,7.05243484,2835.9,2835.6,0.031684]
[1766034742170,7.05243484,2835.9,2835.2,5.95073664]
[1766034742171,0.405504,2835.7,2835.0,0.002]
[1766034742464,0.405504,2835.7,2834.8,0.002]
[1766034742465,6.72126101,2835.2,2834.8,0.002]
[1766034742670,0.558,2835.2,2834.8,0.002]
[1766034743048,0.46438023,2835.5,2834.8,0.002]
[1766034743252,0.558,2835.4,2835.1,2.044484]
[1766034743571,0.558,2835.4,2835.0,2.0128]
[1766034743761,0.558,2835.4,2834.9,0.031684]
[1766034744192,7.51799311,2835.5,2834.7,0.031684]
[1766034744479,0.558,2835.4,2834.9,2.455384]
[1766034744648,3.99118667,2835.5,2834.9,2.455384]
[1766034744844,0.558,2835.4,2834.9,2.455384]
[1766034745245,8.07599311,2835.5,2834.9,2.455384]
[1766034745442,6.73078532,2835.4,2834.7,0.031684]
[1766034745758,7.2867443,2835.4,2834.7,2.455384]
[1766034745944,0.55595898,2835.4,2834.7,2.455384]
[1766034746143,6.02986451,2835.5,2834.9,0.031684]
[1766034746359,9.55667095,2835.5,2834.9,0.031684]
[1766034746559,2.18470461,2835.4,2834.9,0.031684]
[1766034746945,0.558,2835.3,2834.9,0.031684]
[1766034747164,0.558,2835.3,2834.6,0.031684]
[1766034747165,7.2867443,2835.2,2834.6,0.031684]
[1766034747361,3.52721244,2835.1,2834.6,2.455384]
[1766034748273,7.05442488,2835.1,2834.6,0.031684]
[1766034748480,3.52721244,2835.1,2834.6,0.031684]
[1766034748647,3.52721244,2835.1,2834.6,2.044484]
[1766034748846,3.52721244,2835.1,2834.6,2.034484]
[1766034749075,3.52714264,2835.2,2834.6,5.97320363]
[1766034749276,4.08530817,2835.1,2834.7,2.4237]
[1766034749459,0.558,2835.1,2834.7,2.4237]
[1766034750042,4.08522102,2835.1,2834.7,2.4237]
[1766034750578,0.46438023,2835.6,2835.0,2.455384]
[1766034750800,0.46438023,2835.6,2835.2,2.0128]
[1766034750964,1.02238023,2835.6,2835.2,2.4237]
[1766034751294,0.46438023,2835.6,2835.3,2.4237]
[1766034751591,0.46438023,2835.5,2835.3,2.4237]
[1766034752094,3.5264726,2835.7,2835.2,0.4109]
[1766034752095,1.02238023,2835.7,2835.2,0.4109]
[1766034752263,1.02238023,2835.7,2835.4,2.4237]
[1766034752660,0.46438023,2835.7,2835.4,2.4237]
[1766034752864,1.02238023,2835.8,2835.5,2.4237]
[1766034753777,0.46438023,2835.8,2835.5,2.4237]
[1766034754093,0.558,2836.0,2835.6,2.4237]
[1766034754295,1.02238023,2836.0,2835.6,2.4237]
[1766034754469,1.02238023,2836.0,2835.6,2.455384]
[1766034755101,1.02238023,2836.0,2835.6,0.031684]
[1766034755277,0.46438023,2836.0,2835.6,0.031684]
[1766034755792,3.52621742,2835.9,2835.6,0.031684]
[1766034756304,4.0821764,2835.9,2835.5,2.4237]
[1766034757195,4.0821764,2835.9,2835.3,0.031684]
[1766034757389,4.0821764,2835.9,2835.3,2.455384]
[1766034757587,3.52646612,2835.7,2835.3,0.4109]
[1766034757887,3.52646612,2835.7,2835.3,2.4237]
[1766034758066,3.93187796,2835.8,2835.3,2.4237]
[1766034758266,4.48987796,2835.8,2835.3,2.4237]
[1766034758869,4.48987796,2835.8,2835.4,0.031684]
[1766034760199,8.01625192,2835.8,2835.4,0.031684]
[1766034760382,8.81786271,2835.8,2835.4,0.031684]
[1766034761412,8.81786271,2835.8,2835.2,2.044484]
[1766034761581,8.81786271,2835.8,2835.2,0.031684]
[1766034763492,5.29148875,2835.8,2835.2,2.500384]
[1766034763679,8.81786271,2835.8,2835.2,2.500384]
[1766034763888,0.88178627,2835.7,2835.2,2.500384]
[1766034764082,4.40837491,2835.7,2835.3,2.4687]
[1766034764288,4.08458864,2835.7,2835.4,0.031684]
[1766034765846,3.52658864,2835.7,2835.4,0.031684]
[1766034767401,7.05317728,2835.7,2835.2,0.031684]
[1766034770542,7.05317728,2835.7,2835.0,0.033684]
[1766034770703,7.81429501,2835.7,2835.0,0.033684]
[1766034772328,7.81429501,2835.7,2835.0,6.02966386]
[1766034772636,7.81429501,2835.7,2835.2,0.031684]
[1766034773727,4.28770637,2835.7,2835.2,0.031684]
[1766034773917,0.558,2835.6,2835.2,0.031684]
[1766034774123,4.08467422,2835.6,2835.2,0.031684]
[1766034774815,4.08461895,2835.6,2835.2,2.500384]
[1766034774998,3.52650318,2835.7,2835.2,2.500384]
[1766034775202,0.558,2835.6,2835.2,2.500384]
[1766034775413,0.558,2835.6,2835.2,2.087084]
[1766034775633,0.558,2835.6,2835.2,2.500384]
[1766034776035,0.46438023,2835.9,2835.2,2.500384]
[1766034776336,0.558,2835.7,2835.3,2.4687]
[1766034776837,0.558,2835.8,2835.4,0.031684]
[1766034777340,0.558,2835.8,2835.4,2.500384]
[1766034778208,4.08445409,2835.8,2835.4,2.500384]
[1766034779945,3.52645409,2835.8,2835.4,2.500384]
[1766034780248,0.46438023,2835.8,2835.6,2.4687]
[1766034780455,0.46438023,2835.8,2835.7,0.4133]
[1766034780780,0.46438023,2835.9,2835.6,2.4687]
[1766034780940,1.02338023,2836.0,2835.7,2.4687]
[1766034781141,0.001,2836.0,2835.8,0.4133]
[1766034781443,0.001,2836.0,2835.8,2.0554]
[1766034781645,0.001,2836.0,2835.9,2.4687]
[1766034781817,3.99035861,2836.1,2835.9,2.4687]
[1766034782021,0.46438023,2836.1,2835.9,2.4687]
[1766034782433,3.52597438,2836.1,2835.9,2.4687]
[1766034782631,0.001,2836.2,2835.9,2.0554]
[1766034782836,0.001,2836.2,2836.0,0.4133]
[1766034783039,0.001,2836.2,2836.0,2.4687]
[1766034784964,4.95341207,2836.5,2836.2,2.4687]
[1766034785555,4.95341207,2836.5,2836.1,2.0554]
[1766034785845,4.95241207,2836.5,2836.1,2.4687]
[1766034786146,8.47793991,2836.5,2836.1,2.4687]
[1766034786648,4.95241207,2836.5,2836.1,2.4687]
[1766034787359,7.92093991,2836.5,2835.9,2.500384]
[1766034787524,9.43190811,2836.5,2835.9,0.031684]
[1766034788855,0.001,2836.2,2835.7,5.99514329]
[1766034789045,0.001,2836.2,2835.8,2.500384]
[1766034791249,0.001,2836.2,2835.8,3.55801558]
[1766034791453,0.001,2836.2,2836.0,0.031684]
[1766034796059,0.001,2836.2,2836.0,6.02465162]
[1766034796234,3.52548027,2836.5,2836.2,0.4459]
[1766034796444,4.08248027,2836.5,2836.2,0.4459]
[1766034796752,1.02138023,2836.5,2836.2,2.498584]
[1766034796961,0.46438023,2836.5,2836.3,0.031684]
[1766034797263,3.52640191,2836.6,2836.3,0.031684]
[1766034797264,0.001,2836.6,2836.4,0.4459]
[1766034797468,0.001,2836.6,2836.4,2.4669]
[1766034798054,0.46538023,2836.6,2836.4,2.4669]
[1766034798348,0.46538023,2836.6,2836.3,2.498584]
[1766034800153,3.52636061,2836.6,2836.3,2.052684]
[1766034800355,3.52636061,2836.6,2836.3,0.031684]
[1766034801257,0.001,2836.6,2836.3,0.031684]
[1766034801453,0.001,2836.6,2836.3,2.052684]
[1766034801760,0.001,2836.6,2836.4,2.4669]
[1766034802232,0.001,2836.6,2836.5,0.031684]
[1766034803843,0.001,2836.6,2836.5,2.498584]
[1766034804038,0.001,2836.6,2836.5,0.031684]
[1766034804449,0.001,2836.6,2836.3,2.498584]
[1766034804650,0.001,2836.6,2836.3,2.052684]
[1766034804859,0.001,2836.6,2836.3,2.498584]
[1766034806230,0.001,2836.6,2836.3,2.052684]
[1766034806426,0.001,2836.6,2836.4,2.4669]
[1766034808231,0.001,2836.6,2836.5,0.031684]
[1766034808439,0.001,2836.7,2836.5,2.498584]
[1766034809364,0.001,2836.7,2836.1,2.4669]
[1766034809549,0.001,2836.7,2836.2,0.031684]
[1766034809969,0.001,2836.7,2836.2,2.498584]
[1766034810435,0.52195898,2836.7,2836.2,2.498584]
[1766034811477,0.405504,2836.6,2835.5,1e-08]
[1766034811673,0.405504,2836.6,2835.1,0.002]
[1766034811674,0.405504,2835.5,2835.1,0.002]
[1766034811973,0.558,2835.4,2835.2,2.4669]
[1766034812159,0.559,2835.5,2835.1,2.4689]
[1766034812372,0.60574271,2835.4,2835.2,0.4459]
[1766034812572,0.14136248,2835.4,2835.2,0.4459]
[1766034813772,0.46438023,2835.4,2835.2,2.4669]
[1766034813976,1.46828023,2835.5,2835.2,2.4669]
[1766034814150,0.4459,2835.5,2835.2,2.4669]
[1766034814471,1.02238023,2835.6,2835.3,0.4459]
[1766034814679,1.02238023,2835.6,2835.3,2.4669]
[1766034815969,0.46438023,2835.6,2835.3,2.4669]
[1766034816172,3.52650469,2835.7,2835.4,2.4669]
[1766034816173,0.46438023,2835.7,2835.4,2.4669]
[1766034816478,3.52651529,2835.7,2835.4,2.4669]
[1766034816679,0.46438023,2835.6,2835.4,2.4669]
[1766034818252,0.46438023,2835.6,2835.2,2.021]
[1766034818554,3.99106167,2835.6,2835.3,2.4669]
[1766034819582,7.51774311,2835.6,2835.1,0.002]
[1766034819770,0.55292604,2835.5,2835.0,0.002]
[1766034820646,3.52683924,2835.4,2835.0,0.002]
[1766034821750,2.06417429,2835.3,2834.5,0.033684]
[1766034821963,0.91178528,2835.2,2834.5,0.033684]
[1766034822181,0.91178528,2835.2,2834.5,2.560784]
[1766034822579,3.52721244,2835.1,2834.5,2.560784]
[1766034822768,0.55292604,2835.0,2834.5,0.002]
[1766034822973,0.90070042,2835.0,2834.5,0.002]
[1766034823476,0.559,2834.9,2834.4,0.002]
[1766034823850,0.559,2834.9,2833.8,0.002]
[1766034824050,0.559,2834.8,2834.2,2.0483]
[1766034824248,0.559,2834.8,2834.4,2.5271]
[1766034824763,3.52771016,2834.7,2834.2,2.5271]
[1766034825685,3.52771016,2834.7,2834.3,0.4788]
[1766034825881,3.52771016,2834.7,2834.3,2.5271]
[1766034827589,3.99196595,2834.8,2834.3,2.5271]
[1766034827961,3.99196595,2834.8,2834.3,2.5291]
[1766034828684,1.02338023,2834.9,2834.4,0.4788]
[1766034828889,1.00953038,2834.9,2834.5,2.5271]
[1766034829086,3.52762536,2834.8,2834.5,2.5271]
[1766034829988,3.52762536,2834.8,2834.4,2.5271]
[1766034831362,3.52762536,2834.8,2834.3,0.033684]
[1766034832070,3.52762536,2834.8,2834.3,0.002]
[1766034832071,7.05525072,2834.8,2834.3,0.002]
[1766034832267,0.86237811,2834.7,2834.3,0.002]
[1766034832581,0.86237811,2834.7,2834.1,0.031684]
[1766034832777,0.86237811,2834.7,2834.0,0.002]
[1766034832984,0.46438023,2834.5,2834.0,0.002]
[1766034833492,0.46438023,2834.5,2833.9,0.002]
[1766034833690,0.46438023,2834.5,2833.8,0.033684]
[1766034833691,0.71977734,2834.4,2833.8,0.033684]
[1766034833865,0.46438023,2834.2,2833.7,0.002]
[1766034834062,0.46438023,2834.2,2833.4,0.033684]
[1766034834594,0.46438023,2834.2,2833.4,3.56300401]
[1766034834963,0.46438023,2834.2,2833.4,0.033684]
[1766034835164,0.79263003,2834.1,2833.9,0.002]
[1766034835367,1.35163003,2834.1,2833.4,0.002]
[1766034835886,3.52858151,2834.0,2833.4,0.002]
[1766034837761,3.52858151,2834.0,2833.4,2.5291]
[1766034838581,3.52858151,2834.0,2833.5,0.031684]
[1766034838782,3.52858151,2834.0,2833.5,2.558784]
[1766034839567,3.52858151,2834.0,2833.5,0.031684]
[1766034839772,4.41588507,2834.0,2833.5,0.031684]
[1766034840194,0.88730356,2834.0,2833.6,0.4788]
[1766034840399,0.88730356,2834.0,2833.6,2.5271]
[1766034840571,0.88730356,2834.0,2833.7,0.4788]
[1766034840898,0.46438023,2834.3,2833.9,2.0483]
[1766034841079,0.55292604,2834.7,2834.2,2.5271]
[1766034841080,3.52771016,2834.7,2834.2,2.5271]
[1766034841275,0.46438023,2834.6,2834.0,2.5271]
[1766034841492,0.46438023,2834.6,2834.2,2.5271]
[1766034842990,3.52786714,2834.6,2834.3,0.4788]
[1766034843170,3.52786714,2834.6,2834.3,2.5271]
[1766034843792,3.52786714,2834.6,2834.2,2.5271]
[1766034844392,3.99209039,2834.7,2834.2,2.5271]
[1766034844885,7.51980055,2834.7,2834.2,2.5271]
[1766034845091,7.51980055,2834.7,2834.1,0.031684]
[1766034845269,15.73451309,2834.7,2833.9,2.5271]
[1766034845467,0.55292604,2834.6,2833.9,2.5271]
[1766034845667,0.405504,2834.5,2833.7,6.64667778]
[1766034846095,0.405504,2834.6,2833.7,3.117784]
[1766034846304,0.46438023,2834.4,2833.7,0.590684]
[1766034846486,7.77619338,2834.3,2833.6,0.002]
[1766034846884,0.46438023,2834.2,2833.6,0.002]
[1766034847205,0.46438023,2834.2,2833.8,0.031684]
[1766034847903,0.46438023,2834.2,2833.8,2.558784]
[1766034848413,3.99280003,2834.2,2833.7,2.558784]
[1766034848774,7.99247757,2834.2,2833.7,2.558784]
[1766034849473,7.99247757,2834.2,2833.7,2.5271]
[1766034850506,7.99247757,2834.2,2833.6,0.002]
[1766034850889,0.559,2834.1,2833.6,0.002]
[1766034852505,3.52858151,2834.0,2833.6,0.002]
[1766034852693,3.52858151,2834.0,2833.6,2.6672]
[1766034852898,4.03171824,2834.0,2833.6,2.6672]
[1766034853407,4.03171824,2834.0,2833.6,0.002]
[1766034854102,0.96751696,2834.0,2833.6,0.002]
[1766034854507,0.96751696,2834.0,2833.6,2.6672]
[1766034854679,0.46438023,2834.0,2833.7,2.696884]
[1766034856307,0.46438023,2834.1,2833.8,0.4778]
[1766034856513,0.46438023,2834.1,2833.7,0.031684]
[1766034856514,0.46438023,2834.2,2833.9,2.696884]
[1766034856707,3.52813497,2834.4,2833.9,2.696884]
[1766034856908,1.16999302,2834.3,2834.1,0.4778]
[1766034857110,3.52799909,2834.5,2834.1,2.6652]
[1766034857316,0.46438023,2834.4,2834.1,2.6652]
[1766034857815,0.46438023,2834.4,2834.2,2.6652]
[1766034859719,0.46438023,2834.5,2834.2,2.6652]
[1766034859896,0.46438023,2834.5,2833.9,3.56035886]
[1766034859897,0.46438023,2834.5,2834.1,2.1874]
[1766034860098,0.46438023,2834.6,2834.2,2.6652]
[1766034860490,0.46438023,2834.6,2834.3,2.6652]
[1766034860707,0.46438023,2834.6,2834.4,2.6652]
[1766034861281,0.46538023,2834.7,2834.4,2.6652]
[1766034861694,0.46538023,2834.7,2832.7,0.002]
[1766034861695,0.405504,2833.9,2832.7,0.002]
[1766034861895,0.405504,2833.7,2832.7,0.002]
[1766034862108,6.73339317,2833.1,2832.5,0.002]
[1766034862299,1.55664018,2833.0,2832.5,0.002]
[1766034862612,3.52995163,2832.9,2832.5,0.002]
[1766034863414,0.71388972,2833.0,2832.4,0.4778]
[1766034863617,1.02538023,2833.2,2832.4,2.6652]
[1766034863812,1.5315838,2833.2,2832.4,2.6652]
[1766034864114,1.5315838,2833.2,2832.5,0.4778]
[1766034864115,0.9705838,2833.2,2832.5,0.4778]
[1766034864313,0.46438023,2833.2,2832.6,2.6652]
[1766034864817,0.46438023,2833.0,2832.6,2.6652]
[1766034865129,0.46438023,2833.0,2832.4,3.53053577]
[1766034865293,0.46438023,2833.0,2832.5,0.031684]
[1766034865991,0.46438023,2833.1,2832.8,2.6652]
[1766034866189,4.59028592,2833.6,2832.9,2.696884]
[1766034866190,0.46438023,2833.5,2832.9,2.696884]
[1766034866409,1.62217496,2833.6,2833.1,2.696884]
[1766034866611,1.52555519,2833.6,2833.1,6.22655532]
[1766034866898,0.46438023,2833.7,2833.1,6.22655532]
[1766034867130,1.52531877,2833.7,2833.1,6.22655532]
[1766034867335,0.46438023,2833.6,2833.1,6.22655532]
[1766034867511,0.46438023,2833.6,2833.1,1.01050003]
[1766034867713,0.46438023,2833.6,2833.2,2.6652]
[1766034868045,1.06089727,2833.8,2833.3,0.031684]
[1766034868243,3.9932383,2833.8,2833.3,0.031684]
[1766034871041,3.9932383,2833.8,2833.3,2.696884]
[1766034871215,3.9932383,2833.8,2833.4,2.6652]
[1766034871743,0.46438023,2833.6,2832.3,0.002]
[1766034872039,2.38495603,2833.5,2832.3,3.56428138]
[1766034872414,2.38495603,2833.5,2832.3,6.22948138]
[1766034872810,0.86988423,2833.3,2832.3,6.22948138]
[1766034873054,0.46438023,2833.1,2832.4,4.15349951]
[1766034873726,0.46438023,2833.1,2832.3,2.698884]
[1766034873727,0.51425107,2833.0,2832.3,3.260884]
[1766034874232,1.52555519,2833.1,2832.3,3.260884]
[1766034874409,1.52555519,2833.1,2832.6,0.002]
[1766034875018,0.46438023,2832.9,2832.6,0.002]
[1766034877256,3.99425707,2833.0,2832.6,0.002]
[1766034878367,8.38265163,2833.0,2832.6,0.002]
[1766034883251,8.52414162,2833.0,2832.6,0.002]
[1766034884127,12.42677954,2833.0,2832.3,0.002]
[1766034884421,0.1414975,2832.9,2832.3,2.881]
[1766034885333,0.1414975,2832.9,2832.4,0.031684]
[1766034886419,7.52413391,2833.0,2832.4,0.031684]
[1766034886624,0.75251339,2832.9,2832.4,2.910684]
[1766034886927,7.52413391,2833.0,2832.4,2.910684]
[1766034887622,3.99425707,2833.0,2832.6,0.031684]
[1766034887822,0.001,2833.1,2832.8,2.910684]
[1766034888029,7.61940832,2833.5,2833.0,2.879]
[1766034888240,1.27444933,2833.4,2833.0,2.879]
[1766034888448,7.05890656,2833.3,2832.8,0.031684]
[1766034888649,0.46438023,2833.2,2832.8,0.031684]
[1766034888841,0.46438023,2833.2,2832.8,2.910684]
[1766034889755,0.46438023,2833.2,2832.9,2.879]
[1766034890824,3.52961428,2833.2,2833.0,0.5547]
[1766034891027,3.53061428,2833.2,2833.0,2.879]
[1766034891434,0.46538023,2833.2,2833.1,2.879]
[1766034891835,0.001,2833.2,2833.1,2.879]
[1766034894762,0.46438023,2833.5,2833.1,2.3243]
[1766034894964,0.46438023,2833.5,2833.2,2.879]
[1766034895538,3.52932872,2833.4,2833.2,2.879]
[1766034897486,0.46438023,2833.6,2833.2,2.879]
[1766034899961,0.46438023,2833.4,2833.2,2.879]
[1766034900162,0.46538023,2833.4,2833.2,2.879]
[1766034901868,3.52945328,2833.3,2833.2,2.879]
[1766034902360,3.9947702,2833.4,2833.0,2.910684]
[1766034902564,3.5303536,2833.4,2833.2,0.5547]
[1766034902754,0.46438023,2833.5,2833.3,0.586384]
[1766034902755,3.52928334,2833.5,2833.3,0.586384]
[1766034902965,3.5291409,2833.6,2833.4,2.879]
[1766034903151,3.5291409,2833.6,2833.5,0.5547]
[1766034903352,3.5291409,2833.6,2833.4,2.3243]
[1766034903546,3.5291409,2833.6,2833.4,2.879]
[1766034903750,3.52898245,2833.7,2833.5,0.5547]
[1766034903973,7.46291604,2833.9,2833.5,2.879]
[1766034904849,0.46438023,2833.8,2833.5,2.879]
[1766034905050,0.46438023,2833.8,2833.6,0.5547]
[1766034905374,0.001,2834.5,2833.6,0.5547]
[1766034905375,3.52904194,2834.5,2833.9,2.3243]
[1766034905537,3.52904194,2834.5,2834.2,2.879]
[1766034905538,0.001,2834.5,2834.2,2.879]
[1766034905735,0.001,2834.5,2834.3,2.879]
[1766034906354,4.53102646,2834.0,2832.5,3.53241625]
[1766034906551,0.001,2834.5,2832.8,5.99106136]
[1766034906856,0.001,2834.5,2832.9,0.46438023]
[1766034907038,0.001,2834.5,2833.0,0.564]
[1766034907379,0.46438023,2834.0,2833.0,0.564]
[1766034908393,0.46438023,2833.8,2833.0,0.564]
[1766034908564,6.45544159,2833.8,2833.5,0.031684]
[1766034908760,0.405504,2833.7,2833.1,0.031684]
[1766034908963,0.68609456,2833.6,2833.1,0.031684]
[1766034910237,3.52907961,2833.6,2833.1,0.031684]
[1766034910481,3.52907961,2833.6,2833.5,0.031684]
[1766034910992,3.52883054,2833.8,2833.5,0.031684]
[1766034911154,0.001,2833.9,2833.7,2.910484]
[1766034911355,3.5297501,2833.9,2833.7,0.031684]
[1766034912273,0.001,2833.9,2833.7,0.031684]
[1766034912660,0.001,2833.9,2833.8,0.031684]
[1766034913266,0.001,2833.9,2833.7,0.031684]
[1766034914882,6.45644159,2833.9,2832.5,0.002]
[1766034915175,5.99106136,2833.4,2832.6,3.142]
[1766034915343,5.99106136,2833.4,2832.6,3.706]
[1766034915946,0.405504,2833.6,2833.0,0.031684]
[1766034916149,0.405504,2833.6,2833.2,0.031684]
[1766034916448,0.405504,2833.6,2833.0,0.031684]
[1766034916649,0.405504,2833.6,2833.2,0.031684]
[1766034916863,0.405504,2833.4,2833.1,0.031684]
[1766034917383,0.63965654,2833.5,2832.9,0.031684]
[1766034917384,7.05890656,2833.3,2832.9,0.031684]
[1766034918282,7.05865744,2833.4,2833.2,0.031684]
[1766034918484,3.99370895,2833.4,2833.3,0.031684]
[1766034918643,3.52924677,2833.5,2833.3,0.031684]
[1766034920357,0.001,2833.6,2833.3,0.031684]
[1766034920553,0.001,2833.6,2833.5,0.031684]
[1766034920771,1.10618718,2833.6,2833.5,0.031684]
[1766034921351,1.10618718,2833.6,2833.3,0.031684]
[1766034921674,1.10618718,2833.6,2833.4,0.031684]
[1766034921848,1.10618718,2833.6,2833.5,0.031684]
[1766034922048,1.10618718,2833.6,2833.3,0.031684]
[1766034922365,0.001,2833.6,2833.5,0.031684]
[1766034922977,7.05915922,2833.6,2833.3,0.031684]
[1766034923182,0.001,2833.6,2833.5,0.031684]
[1766034923398,0.001,2833.6,2833.5,3.173684]
[1766034924385,3.5290106,2833.7,2833.6,3.142]
[1766034924993,0.001,2833.9,2833.5,3.173684]
[1766034925194,0.001,2833.9,2833.8,0.031684]
[1766034925497,3.528457,2834.1,2833.9,3.142]
[1766034925792,3.528457,2834.1,2834.0,0.031684]
[1766034927392,0.46438023,2834.3,2834.0,0.031684]
[1766034927587,0.75205473,2834.2,2834.0,0.031684]
[1766034928979,0.46438023,2834.3,2834.0,0.031684]
[1766034929172,0.46438023,2834.3,2834.2,0.03528519]
[1766034929357,3.52833251,2834.2,2834.0,0.594684]
[1766034929784,3.52833251,2834.2,2834.0,3.736684]
[1766034930082,7.05666502,2834.2,2834.0,0.594684]
[1766034932467,3.52833251,2834.2,2834.0,0.594684]
[1766034932866,3.52833251,2834.2,2834.0,3.736684]
[1766034933353,0.46438023,2834.3,2834.0,0.594684]
[1766034933559,3.99258825,2834.3,2834.2,0.03528519]
[1766034934267,3.52813513,2834.4,2834.2,0.03528519]
[1766034934268,3.52813513,2834.4,2834.2,3.17728519]
[1766034934472,3.52820802,2834.3,2834.2,3.17728519]
[1766034934990,0.001,2834.5,2834.2,0.03528519]
[1766034935187,0.001,2834.5,2834.4,0.03528519]
[1766034935488,0.001,2834.5,2834.2,0.59828519]
[1766034935694,0.001,2834.5,2834.4,0.03528519]
[1766034935863,0.001,2834.5,2834.2,0.59828519]
[1766034936194,0.001,2834.5,2834.4,0.03528519]
[1766034936366,0.001,2834.5,2834.0,0.594684]
[1766034936568,0.564,2834.5,2833.7,0.03528519]
[1766034936775,0.564,2834.5,2834.0,0.03528519]
[1766034937073,10.58425062,2834.4,2834.0,0.03528519]
[1766034937271,1.11482506,2834.3,2833.7,0.03528519]
[1766034937585,1.11482506,2834.3,2833.9,0.03528519]
[1766034937992,1.67782506,2834.3,2833.9,0.03528519]
[1766034938161,1.67782506,2834.3,2834.1,0.03528519]
[1766034938361,2.14220529,2834.3,2833.5,0.031684]
[1766034938561,1.83564559,2834.2,2833.6,0.03528519]
[1766034939393,7.056914,2834.1,2833.6,0.03528519]
[1766034939893,10.585371,2834.1,2833.5,0.03528519]
[1766034945074,10.585371,2834.1,2833.5,0.03728519]
[1766034945274,7.056914,2834.1,2833.7,0.03528519]
[1766034945583,0.562,2834.0,2833.9,0.03528519]
[1766034945782,0.562,2834.0,2833.7,0.03528519]
[1766034945992,3.52870602,2833.9,2833.8,0.03528519]
[1766034947901,7.05741204,2833.9,2833.7,0.03528519]
[1766034948084,7.056914,2834.1,2833.7,0.03528519]
[1766034949107,7.056914,2834.1,2833.8,0.03528519]
[1766034949288,11.74664019,2834.1,2833.5,0.03728519]
[1766034949484,11.74664019,2834.1,2833.5,0.03528519]
[1766034949485,0.46438023,2834.0,2833.5,0.03528519]
[1766034949690,0.405504,2833.9,2833.1,0.031684]
[1766034949917,0.562,2833.8,2833.1,0.03528519]
[1766034950225,0.46438023,2833.5,2832.8,0.002]
[1766034950424,0.405504,2833.3,2832.5,0.033684]
[1766034950780,0.46438023,2833.1,2832.3,0.033684]
[1766034951007,0.562,2833.0,2832.5,0.03528519]
[1766034951190,0.562,2833.0,2832.1,0.033684]
[1766034951191,0.405504,2832.9,2832.1,0.033684]
[1766034951391,0.59317127,2832.9,2832.4,0.03528519]
[1766034952083,7.06015248,2832.8,2832.4,0.03528519]
[1766034952706,0.562,2832.7,2832.4,0.03528519]
[1766034953211,0.562,2832.7,2832.1,0.033684]
[1766034953376,0.562,2832.7,2832.3,0.03528519]
[1766034953582,2.1464209,2832.7,2832.1,0.033684]
[1766034953886,8.17624873,2832.4,2832.0,0.03528519]